fUSD/lending_fUSD_20250113
["ID","MTS","AMOUNT","RATE_DAILY","PERIOD"]
[348736741,1736761857060,-957.26,0.000109,2]
[348736742,1736761857069,-1827.21,0.000109,2]
[348736743,1736761857079,-582.5,0.000109,2]
[348736744,1736761857088,-518.74,0.000109,2]
[348736745,1736761857097,-955.35,0.00010901,2]
[348736746,1736761857107,-642.69,0.00010901,2]
[348736747,1736761857117,-1777.06,0.00010901,2]
[348736748,1736761857126,-908.8,0.00010901,2]
[348736749,1736761857136,-1687.85,0.00010901,2]
[348736750,1736761857145,-2401.64,0.00010901,2]
[348736751,1736761857154,-1426.96,0.00010901,2]
[348736752,1736761857164,-2048.15,0.00010901,2]
[348736753,1736761857173,-837.66,0.00010901,2]
[348736754,1736761857183,-500.0,0.00010901,2]
[348736755,1736761857192,-525.28,0.00010901,2]
[348736756,1736761857201,-500.0,0.00010901,2]
[348736757,1736761857212,-699.18,0.00010901,2]
[348736758,1736761857223,-1379.9,0.00010901,2]
[348736759,1736761857233,-919.64,0.00010901,2]
[348736760,1736761857244,-500.0,0.00010901,2]
[348736761,1736761857253,-769.93,0.00010901,2]
[348736762,1736761857263,-795.89,0.00010901,2]
[348736763,1736761857273,-684.37,0.00010901,2]
[348736764,1736761857283,-3041.08,0.00010901,2]
[348736765,1736761857292,-1852.72,0.00010901,2]
[348736766,1736761857303,-500.0,0.00010901,2]
[348736767,1736761857313,-819.6,0.00010901,2]
[348736768,1736761857322,-845.21,0.00010901,2]
[348736769,1736761857332,-500.0,0.00010901,2]
[348736770,1736761857342,-1264.6,0.00010901,2]
[348736771,1736761857353,-500.0,0.00010901,2]
[348736772,1736761857364,-1322.65,0.00010901,2]
[348736773,1736761857374,-706.73,0.00010901,2]
[348736774,1736761857383,-1000.0,0.00010945,2]
[348736775,1736761857393,-1000.0,0.00010945,2]
[348736776,1736761857403,-1000.0,0.00010945,2]
[348736777,1736761857413,-1000.0,0.00010945,2]
[348736778,1736761857423,-1000.0,0.00010945,2]
[348736779,1736761857433,-1000.0,0.00010945,2]
[348736780,1736761857443,-1125.049,0.00010945,2]
[348736781,1736761857453,-500.0,0.00010958,2]
[348736782,1736761857462,-4000.0,0.00010959,2]
[348736783,1736761857471,-649.05730035,0.00010976,2]
[348736784,1736761857481,-9407.0640136,0.00010992,2]
[348736785,1736761857494,-3416.6501557,0.00010992,2]
[348736786,1736761857504,-590.5624031,0.00010999,2]
[348736787,1736761857514,-8553.28982718,0.00011,2]
[348736788,1736761857525,-7188.74121618,0.00011,2]
[348736789,1736761857534,-550.0,0.00011,2]
[348736790,1736761857544,-365.0,0.00011,2]
[348736791,1736761857554,-501.0,0.00011014,2]
[348736792,1736761857564,-596.06689676,0.0001105,2]
[348736793,1736761857573,-698.59382721,0.0001105,2]
[348736794,1736761857583,-675.66,0.00011081,2]
[348736795,1736761857593,-563.04,0.00011081,2]
[348736796,1736761857602,-500.0,0.00011081,2]
[348736797,1736761857612,-815.19,0.00011081,2]
[348736798,1736761857622,-1371.92,0.00011081,2]
[348736799,1736761857632,-739.21,0.00011081,2]
[348736800,1736761857641,-934.74,0.00011081,2]
[348736801,1736761857650,-540.02,0.00011081,2]
[348736802,1736761857659,-1829.77,0.00011081,2]
[348736803,1736761857668,-500.0,0.00011081,2]
[348736804,1736761857678,-523.09,0.00011081,2]
[348736805,1736761857687,-500.0,0.00011081,2]
[348736806,1736761857696,-895.44,0.00011081,2]
[348736807,1736761857705,-1572.97,0.00011081,2]
[348736808,1736761857715,-500.0,0.00011081,2]
[348736809,1736761857724,-500.0,0.00011081,2]
[348736810,1736761857733,-1668.66,0.00011081,2]
[348736811,1736761857744,-956.53,0.00011081,2]
[348736812,1736761857753,-500.0,0.00011081,2]
[348736813,1736761857762,-703.64,0.00011081,2]
[348736814,1736761857772,-562.73,0.00011082,2]
[348736815,1736761857781,-500.0,0.00011082,2]
[348736816,1736761857790,-508.06,0.00011082,2]
[348736817,1736761857800,-500.0,0.00011082,2]
[348736818,1736761857809,-500.0,0.00011082,2]
[348736819,1736761857818,-500.0,0.00011082,2]
[348736820,1736761857828,-500.0,0.00011082,2]
[348736821,1736761857838,-500.0,0.00011082,2]
[348736822,1736761857847,-500.0,0.00011082,2]
[348736823,1736761857855,-500.0,0.00011082,2]
[348736824,1736761857864,-500.0,0.00011082,2]
[348736825,1736761857874,-553.37,0.00011082,2]
[348736826,1736761857883,-500.0,0.00011082,2]
[348736827,1736761857893,-500.0,0.00011082,2]
[348736828,1736761857902,-395.13858702,0.00011082,2]
[348736829,1736761857912,-500.0,0.00011082,2]
[348736830,1736761857921,-514.93,0.00011082,2]
[348736831,1736761857931,-500.0,0.00011082,2]
[348736832,1736761857940,-500.0,0.00011082,2]
[348736833,1736761857949,-500.0,0.00011082,2]
[348736834,1736761857959,-500.0,0.00011082,2]
[348736835,1736761857968,-500.0,0.00011082,2]
[348736836,1736761857977,-906.014611,0.00011082,2]
[348736837,1736761857987,-500.0,0.00011082,2]
[348736838,1736761857997,-500.0,0.00011082,2]
[348736839,1736761858007,-500.0,0.00011082,2]
[348736840,1736761858016,-754.089611,0.00011082,2]
[348736841,1736761858025,-500.0,0.00011082,2]
[348736842,1736761858034,-500.0,0.00011082,2]
[348736843,1736761858044,-585.20703386,0.00011082,2]
[348736844,1736761858053,-500.0,0.00011082,2]
[348736845,1736761858064,-500.0,0.00011082,2]
[348736846,1736761858074,-500.0,0.00011082,2]
[348736847,1736761858084,-500.0,0.00011082,2]
[348736848,1736761858093,-500.0,0.00011082,2]
[348736849,1736761858105,-1365.85,0.00011082,2]
[348736850,1736761858116,-500.0,0.00011082,2]
[348736851,1736761858126,-3444.8,0.00011082,2]
[348736852,1736761858136,-500.0,0.00011082,2]
[348736853,1736761858146,-500.0,0.00011082,2]
[348736854,1736761858156,-500.0,0.00011082,2]
[348736855,1736761858166,-500.0,0.00011082,2]
[348736856,1736761858177,-500.0,0.00011082,2]
[348736857,1736761858187,-225.03249009,0.00011082,2]
[348736858,1736761858197,-1812.19,0.00011082,2]
[348736859,1736761858207,-500.0,0.00011082,2]
[348736860,1736761858216,-570.14,0.00011082,2]
[348736861,1736761858228,-500.0,0.00011082,2]
[348736862,1736761858240,-3131.45,0.00011082,2]
[348736863,1736761858250,-500.0,0.00011082,2]
[348736864,1736761858259,-500.0,0.00011082,2]
[348736865,1736761858269,-500.0,0.00011082,2]
[348736866,1736761858278,-1123.56,0.00011082,2]
[348736867,1736761858287,-500.0,0.00011082,2]
[348736868,1736761858297,-173.59984924,0.00011082,2]
[348736869,1736761858307,-500.0,0.00011082,2]
[348736870,1736761858317,-500.0,0.00011082,2]
[348736871,1736761858327,-1617.32,0.00011082,2]
[348736872,1736761858337,-500.0,0.00011082,2]
[348736873,1736761858347,-500.0,0.00011082,2]
[348736874,1736761858358,-500.0,0.00011082,2]
[348736875,1736761858368,-503.31,0.00011082,2]
[348736876,1736761858378,-527.78,0.00011082,2]
[348736877,1736761858387,-500.0,0.00011082,2]
[348736878,1736761858397,-500.0,0.00011082,2]
[348736879,1736761858406,-906.36,0.00011082,2]
[348736880,1736761858417,-500.0,0.00011082,2]
[348736881,1736761858427,-500.0,0.00011082,2]
[348736882,1736761858436,-500.0,0.00011082,2]
[348736883,1736761858446,-694.83,0.00011082,2]
[348736884,1736761858455,-1331.7,0.00011082,2]
[348736885,1736761858464,-500.0,0.00011082,2]
[348736886,1736761858474,-754.36,0.00011082,2]
[348736887,1736761858483,-500.0,0.00011082,2]
[348736888,1736761858494,-500.0,0.00011082,2]
[348736889,1736761858503,-500.0,0.00011082,2]
[348736890,1736761858512,-500.0,0.00011082,2]
[348736891,1736761858522,-1141.75,0.00011082,2]
[348736892,1736761858531,-511.53,0.00011082,2]
[348736893,1736761858541,-500.0,0.00011082,2]
[348736894,1736761858550,-746.69,0.00011082,2]
[348736895,1736761858561,-720.66,0.00011082,2]
[348736896,1736761858572,-1746.58,0.00011082,2]
[348736897,1736761858582,-688.73,0.00011082,2]
[348736898,1736761858591,-1844.98,0.00011082,2]
[348736899,1736761858601,-973.62,0.00011082,2]
[348736900,1736761858610,-649.05730035,0.00011083,2]
[348736901,1736761858619,-535.32,0.00011083,2]
[348736902,1736761858627,-500.0,0.00011083,2]
[348736903,1736761858637,-500.0,0.00011083,2]
[348736904,1736761858646,-500.0,0.00011083,2]
[348736905,1736761858655,-500.0,0.00011083,2]
[348736906,1736761858664,-500.0,0.00011083,2]
[348736907,1736761858673,-500.0,0.00011083,2]
[348736908,1736761858682,-522.85,0.00011083,2]
[348736909,1736761858691,-500.0,0.00011083,2]
[348736910,1736761858701,-559.05,0.00011083,2]
[348736911,1736761858710,-500.0,0.00011083,2]
[348736912,1736761858719,-500.0,0.00011083,2]
[348736913,1736761858728,-500.0,0.00011083,2]
[348736914,1736761858737,-500.0,0.00011083,2]
[348736915,1736761858748,-500.0,0.00011083,2]
[348736916,1736761858757,-218.38430506,0.00011083,2]
[348736917,1736761858767,-528.65,0.00011083,2]
[348736918,1736761858776,-268.05016063,0.00011083,2]
[348736919,1736761858785,-521.01,0.00011083,2]
[348736920,1736761858795,-587.45,0.00011083,2]
[348736921,1736761858805,-523.07,0.00011083,2]
[348736922,1736761858815,-537.6,0.00011083,2]
[348736923,1736761858825,-342.6421705,0.00011083,2]
[348736924,1736761858835,-500.0,0.00011083,2]
[348736925,1736761858844,-587.0,0.00011097,2]
[348736926,1736761858855,-2422.70184668,0.00011125,7]
[348736927,1736761858864,-1302.84321579,0.00011125,7]
[348736928,1736761858873,-723.94,0.00011174,2]
[348736929,1736761858883,-654.43,0.00011174,2]
[348736930,1736761858893,-1292.13,0.00011174,2]
[348736931,1736761858904,-753.89,0.00011174,2]
[348736932,1736761858913,-522.17,0.00011174,2]
[348736933,1736761858922,-500.0,0.00011174,2]
[348736934,1736761858932,-715.42,0.00011174,2]
[348736935,1736761858942,-500.0,0.00011174,2]
[348736936,1736761858951,-576.75,0.00011174,2]
[348736937,1736761858961,-500.0,0.00011174,2]
[348736938,1736761858971,-757.07,0.00011174,2]
[348736939,1736761858980,-947.85,0.00011174,2]
[348736940,1736761858991,-957.26,0.00011174,2]
[348736941,1736761859000,-1827.21,0.00011174,2]
[348736942,1736761859009,-582.5,0.00011174,2]
[348736943,1736761859019,-518.74,0.00011174,2]
[348736944,1736761859028,-955.35,0.00011175,2]
[348736945,1736761859038,-642.69,0.00011175,2]
[348736946,1736761859049,-1777.06,0.00011175,2]
[348736947,1736761859059,-908.8,0.00011175,2]
[348736948,1736761859070,-1687.85,0.00011175,2]
[348736949,1736761859080,-2401.64,0.00011175,2]
[348736950,1736761859090,-1426.96,0.00011175,2]
[348736951,1736761859101,-2048.15,0.00011175,2]
[348736952,1736761859111,-837.66,0.00011175,2]
[348736953,1736761859121,-500.0,0.00011175,2]
[348736954,1736761859131,-525.28,0.00011175,2]
[348736955,1736761859141,-500.0,0.00011175,2]
[348736956,1736761859152,-699.18,0.00011175,2]
[348736957,1736761859162,-1379.9,0.00011175,2]
[348736958,1736761859171,-919.64,0.00011175,2]
[348736959,1736761859180,-500.0,0.00011175,2]
[348736960,1736761859191,-769.93,0.00011175,2]
[348736961,1736761859201,-795.89,0.00011175,2]
[348736962,1736761859212,-684.37,0.00011175,2]
[348736963,1736761859224,-3041.08,0.00011175,2]
[348736964,1736761859235,-1852.72,0.00011175,2]
[348736965,1736761859245,-500.0,0.00011175,2]
[348736966,1736761859255,-819.6,0.00011175,2]
[348736967,1736761859265,-845.21,0.00011175,2]
[348736968,1736761859275,-500.0,0.00011175,2]
[348736969,1736761859284,-1264.6,0.00011175,2]
[348736970,1736761859294,-413.96392957,0.00011175,2]
[348736971,1736761859303,-1322.65,0.00011175,2]
[348736972,1736761859313,-706.73,0.00011175,2]
[348736973,1736761859323,-649.05730035,0.0001119,2]
[348736974,1736761859332,-828.11,0.000112,2]
[348736975,1736761859342,-1000.0,0.000112,2]
[348736976,1736761859352,-231.0,0.000112,2]
[348736977,1736761859361,-472.93,0.00011243,2]
[348736978,1736761859370,-1000.0,0.00011253,2]
[348736979,1736761859379,-649.05730035,0.00011297,2]
[348736980,1736761859389,-675.66,0.00011355,2]
[348736981,1736761859398,-563.04,0.00011355,2]
[348736982,1736761859407,-500.0,0.00011355,2]
[348736983,1736761859417,-815.19,0.00011355,2]
[348736984,1736761859427,-1371.92,0.00011355,2]
[348736985,1736761859438,-739.21,0.00011355,2]
[348736986,1736761859447,-934.74,0.00011355,2]
[348736987,1736761859457,-540.02,0.00011355,2]
[348736988,1736761859466,-1829.77,0.00011355,2]
[348736989,1736761859475,-500.0,0.00011355,2]
[348736990,1736761859486,-523.09,0.00011355,2]
[348736991,1736761859495,-500.0,0.00011355,2]
[348736992,1736761859505,-895.44,0.00011355,2]
[348736993,1736761859514,-1572.97,0.00011355,2]
[348736994,1736761859523,-500.0,0.00011355,2]
[348736995,1736761859534,-500.0,0.00011355,2]
[348736996,1736761859544,-1668.66,0.00011355,2]
[348736997,1736761859555,-956.53,0.00011355,2]
[348736998,1736761859565,-500.0,0.00011355,2]
[348736999,1736761859577,-703.64,0.00011355,2]
[348737000,1736761859588,-562.73,0.00011356,2]
[348737001,1736761859598,-500.0,0.00011356,2]
[348737002,1736761859608,-508.06,0.00011356,2]
[348737003,1736761859619,-500.0,0.00011356,2]
[348737004,1736761859629,-500.0,0.00011356,2]
[348737005,1736761859640,-500.0,0.00011356,2]
[348737006,1736761859650,-500.0,0.00011356,2]
[348737007,1736761859660,-500.0,0.00011356,2]
[348737008,1736761859670,-500.0,0.00011356,2]
[348737009,1736761859681,-500.0,0.00011356,2]
[348737010,1736761859691,-500.0,0.00011356,2]
[348737011,1736761859701,-553.37,0.00011356,2]
[348737012,1736761859711,-500.0,0.00011356,2]
[348737013,1736761859721,-500.0,0.00011356,2]
[348737014,1736761859731,-500.0,0.00011356,2]
[348737015,1736761859741,-514.93,0.00011356,2]
[348737016,1736761859751,-500.0,0.00011356,2]
[348737017,1736761859760,-500.0,0.00011356,2]
[348737018,1736761859770,-500.0,0.00011356,2]
[348737019,1736761859779,-188.87049802,0.00011356,2]
[348737020,1736761859788,-500.0,0.00011356,2]
[348737021,1736761859799,-906.014611,0.00011356,2]
[348737022,1736761859809,-500.0,0.00011356,2]
[348737023,1736761859818,-500.0,0.00011356,2]
[348737024,1736761859828,-500.0,0.00011356,2]
[348737025,1736761859838,-754.089611,0.00011356,2]
[348737026,1736761859848,-500.0,0.00011356,2]
[348737027,1736761859858,-500.0,0.00011356,2]
[348737028,1736761859867,-500.0,0.00011356,2]
[348737029,1736761859879,-500.0,0.00011356,2]
[348737030,1736761859889,-500.0,0.00011356,2]
[348737031,1736761859899,-500.0,0.00011356,2]
[348737032,1736761859910,-500.0,0.00011356,2]
[348737033,1736761859919,-1365.85,0.00011356,2]
[348737034,1736761859928,-500.0,0.00011356,2]
[348737035,1736761859938,-3444.8,0.00011356,2]
[348737036,1736761859948,-500.0,0.00011356,2]
[348737037,1736761859957,-500.0,0.00011356,2]
[348737038,1736761859967,-500.0,0.00011356,2]
[348737039,1736761859976,-500.0,0.00011356,2]
[348737040,1736761859986,-500.0,0.00011356,2]
[348737041,1736761859996,-1812.19,0.00011356,2]
[348737042,1736761860006,-500.0,0.00011356,2]
[348737043,1736761860015,-570.14,0.00011356,2]
[348737044,1736761860025,-500.0,0.00011356,2]
[348737045,1736761860034,-3131.45,0.00011356,2]
[348737046,1736761860044,-500.0,0.00011356,2]
[348737047,1736761860055,-500.0,0.00011356,2]
[348737048,1736761860065,-500.0,0.00011356,2]
[348737049,1736761860075,-1123.56,0.00011356,2]
[348737050,1736761860085,-500.0,0.00011356,2]
[348737051,1736761860095,-500.0,0.00011356,2]
[348737052,1736761860105,-500.0,0.00011356,2]
[348737053,1736761860115,-1617.32,0.00011356,2]
[348737054,1736761860125,-500.0,0.00011356,2]
[348737055,1736761860135,-500.0,0.00011356,2]
[348737056,1736761860144,-500.0,0.00011356,2]
[348737057,1736761860154,-503.31,0.00011356,2]
[348737058,1736761860163,-527.78,0.00011356,2]
[348737059,1736761860173,-500.0,0.00011356,2]
[348737060,1736761860183,-500.0,0.00011356,2]
[348737061,1736761860193,-906.36,0.00011356,2]
[348737062,1736761860202,-500.0,0.00011356,2]
[348737063,1736761860212,-500.0,0.00011356,2]
[348737064,1736761860224,-694.83,0.00011356,2]
[348737065,1736761860234,-1331.7,0.00011356,2]
[348737066,1736761860250,-500.0,0.00011356,2]
[348737067,1736761860260,-754.36,0.00011356,2]
[348737068,1736761860271,-500.0,0.00011356,2]
[348737069,1736761860281,-500.0,0.00011356,2]
[348737070,1736761860290,-500.0,0.00011356,2]
[348737071,1736761860300,-500.0,0.00011356,2]
[348737072,1736761860311,-1141.75,0.00011356,2]
[348737073,1736761860322,-500.0,0.00011356,2]
[348737074,1736761860332,-511.53,0.00011356,2]
[348737075,1736761860341,-746.69,0.00011356,2]
[348737076,1736761860351,-720.66,0.00011356,2]
[348737077,1736761860360,-1746.58,0.00011356,2]
[348737078,1736761860370,-688.73,0.00011356,2]
[348737079,1736761860379,-1844.98,0.00011356,2]
[348737080,1736761860388,-973.62,0.00011356,2]
[348737081,1736761860398,-500.0,0.00011357,2]
[348737082,1736761860407,-500.0,0.00011357,2]
[348737083,1736761860417,-500.0,0.00011357,2]
[348737084,1736761860426,-401.68295928,0.00011357,2]
[348737085,1736761860435,-500.0,0.00011357,2]
[348737086,1736761860444,-500.0,0.00011357,2]
[348737087,1736761860454,-522.85,0.00011357,2]
[348737088,1736761860464,-500.0,0.00011357,2]
[348737089,1736761860474,-559.05,0.00011357,2]
[348737090,1736761860483,-500.0,0.00011357,2]
[348737091,1736761860495,-500.0,0.00011357,2]
[348737092,1736761860504,-500.0,0.00011357,2]
[348737093,1736761860514,-500.0,0.00011357,2]
[348737094,1736761860523,-500.0,0.00011357,2]
[348737095,1736761860532,-528.65,0.00011357,2]
[348737096,1736761860542,-521.01,0.00011357,2]
[348737097,1736761860551,-587.45,0.00011357,2]
[348737098,1736761860561,-523.07,0.00011357,2]
[348737099,1736761860570,-537.6,0.00011357,2]
[348737100,1736761860580,-500.0,0.00011357,2]
[348737101,1736761860589,-154.78,0.000114,2]
[348737102,1736761860598,-649.05730035,0.00011403,2]
[348737103,1736761860607,-500.0,0.00011425,2]
[348737104,1736761860617,-723.94,0.00011448,2]
[348737105,1736761860626,-654.43,0.00011448,2]
[348737106,1736761860635,-1292.13,0.00011448,2]
[348737107,1736761860645,-753.89,0.00011448,2]
[348737108,1736761860654,-522.17,0.00011448,2]
[348737109,1736761860664,-500.0,0.00011448,2]
[348737110,1736761860673,-715.42,0.00011448,2]
[348737111,1736761860682,-500.0,0.00011448,2]
[348737112,1736761860691,-576.75,0.00011448,2]
[348737113,1736761860700,-500.0,0.00011448,2]
[348737114,1736761860710,-757.07,0.00011448,2]
[348737115,1736761860720,-947.85,0.00011448,2]
[348737116,1736761860730,-957.26,0.00011448,2]
[348737117,1736761860740,-1827.21,0.00011448,2]
[348737118,1736761860749,-582.5,0.00011448,2]
[348737119,1736761860759,-518.74,0.00011448,2]
[348737120,1736761860769,-955.35,0.00011449,2]
[348737121,1736761860778,-642.69,0.00011449,2]
[348737122,1736761860788,-1777.06,0.00011449,2]
[348737123,1736761860797,-908.8,0.00011449,2]
[348737124,1736761860807,-1687.85,0.00011449,2]
[348737125,1736761860816,-2401.64,0.00011449,2]
[348737126,1736761860825,-1426.96,0.00011449,2]
[348737127,1736761860835,-2048.15,0.00011449,2]
[348737128,1736761860844,-786.67,0.00011449,2]
[348737129,1736761860854,-837.66,0.00011449,2]
[348737130,1736761860863,-500.0,0.00011449,2]
[348737131,1736761860872,-525.28,0.00011449,2]
[348737132,1736761860882,-500.0,0.00011449,2]
[348737133,1736761860891,-699.18,0.00011449,2]
[348737134,1736761860901,-1379.9,0.00011449,2]
[348737135,1736761860910,-919.64,0.00011449,2]
[348737136,1736761860920,-500.0,0.00011449,2]
[348737137,1736761860930,-769.93,0.00011449,2]
[348737138,1736761860943,-795.89,0.00011449,2]
[348737139,1736761860953,-684.37,0.00011449,2]
[348737140,1736761860963,-3041.08,0.00011449,2]
[348737141,1736761860972,-1852.72,0.00011449,2]
[348737142,1736761860982,-500.0,0.00011449,2]
[348737143,1736761860994,-819.6,0.00011449,2]
[348737144,1736761861003,-845.21,0.00011449,2]
[348737145,1736761861013,-500.0,0.00011449,2]
[348737146,1736761861023,-1264.6,0.00011449,2]
[348737147,1736761861032,-1322.65,0.00011449,2]
[348737148,1736761861042,-706.73,0.00011449,2]
[348737149,1736761861052,-100279.96697158,0.000115,2]
[348737150,1736761861061,-2751.0,0.00011507,2]
[348737151,1736761861071,-649.05730035,0.0001151,2]
[348737152,1736761861081,-379.0,0.000116,2]
[348737153,1736761861094,-649.05730035,0.00011617,2]
[348737154,1736761861104,-675.66,0.00011629,2]
[348737155,1736761861114,-563.04,0.00011629,2]
[348737156,1736761861123,-500.0,0.00011629,2]
[348737157,1736761861133,-815.19,0.00011629,2]
[348737158,1736761861143,-1371.92,0.00011629,2]
[348737159,1736761861154,-739.21,0.00011629,2]
[348737160,1736761861332,-934.74,0.00011629,2]
[348737161,1736761861342,-540.02,0.00011629,2]
[348737162,1736761861353,-1829.77,0.00011629,2]
[348737163,1736761861364,-500.0,0.00011629,2]
[348737164,1736761861374,-523.09,0.00011629,2]
[348737165,1736761861385,-500.0,0.00011629,2]
[348737166,1736761861395,-895.44,0.00011629,2]
[348737167,1736761861404,-1572.97,0.00011629,2]
[348737168,1736761861413,-500.0,0.00011629,2]
[348737169,1736761861422,-500.0,0.00011629,2]
[348737170,1736761861432,-1668.66,0.00011629,2]
[348737171,1736761861442,-956.53,0.00011629,2]
[348737172,1736761861452,-500.0,0.00011629,2]
[348737173,1736761861462,-703.64,0.00011629,2]
[348737174,1736761861473,-562.73,0.0001163,2]
[348737175,1736761861482,-500.0,0.0001163,2]
[348737176,1736761861494,-508.06,0.0001163,2]
[348737177,1736761861503,-500.0,0.0001163,2]
[348737178,1736761861513,-500.0,0.0001163,2]
[348737179,1736761861522,-500.0,0.0001163,2]
[348737180,1736761861531,-500.0,0.0001163,2]
[348737181,1736761861540,-500.0,0.0001163,2]
[348737182,1736761861550,-500.0,0.0001163,2]
[348737183,1736761861559,-500.0,0.0001163,2]
[348737184,1736761861568,-553.37,0.0001163,2]
[348737185,1736761861577,-500.0,0.0001163,2]
[348737186,1736761861586,-500.0,0.0001163,2]
[348737187,1736761861597,-500.0,0.0001163,2]
[348737188,1736761861609,-514.93,0.0001163,2]
[348737189,1736761861619,-500.0,0.0001163,2]
[348737190,1736761861628,-500.0,0.0001163,2]
[348737191,1736761861637,-500.0,0.0001163,2]
[348737192,1736761861646,-500.0,0.0001163,2]
[348737193,1736761861656,-906.014611,0.0001163,2]
[348737194,1736761861665,-500.0,0.0001163,2]
[348737195,1736761861675,-500.0,0.0001163,2]
[348737196,1736761861684,-500.0,0.0001163,2]
[348737197,1736761861693,-754.089611,0.0001163,2]
[348737198,1736761861702,-500.0,0.0001163,2]
[348737199,1736761861712,-500.0,0.0001163,2]
[348737200,1736761861721,-500.0,0.0001163,2]
[348737201,1736761861730,-500.0,0.0001163,2]
[348737202,1736761861741,-500.0,0.0001163,2]
[348737203,1736761861750,-500.0,0.0001163,2]
[348737204,1736761861759,-500.0,0.0001163,2]
[348737205,1736761861768,-1365.85,0.0001163,2]
[348737206,1736761861778,-500.0,0.0001163,2]
[348737207,1736761861787,-3444.8,0.0001163,2]
[348737208,1736761861797,-500.0,0.0001163,2]
[348737209,1736761861807,-500.0,0.0001163,2]
[348737210,1736761861817,-500.0,0.0001163,2]
[348737211,1736761861826,-500.0,0.0001163,2]
[348737212,1736761861836,-500.0,0.0001163,2]
[348737213,1736761861846,-1812.19,0.0001163,2]
[348737214,1736761861855,-500.0,0.0001163,2]
[348737215,1736761861865,-570.14,0.0001163,2]
[348737216,1736761861874,-500.0,0.0001163,2]
[348737217,1736761861883,-3131.45,0.0001163,2]
[348737218,1736761861893,-500.0,0.0001163,2]
[348737219,1736761861902,-500.0,0.0001163,2]
[348737220,1736761861912,-500.0,0.0001163,2]
[348737221,1736761861921,-1123.56,0.0001163,2]
[348737222,1736761861931,-500.0,0.0001163,2]
[348737223,1736761861941,-500.0,0.0001163,2]
[348737224,1736761861952,-500.0,0.0001163,2]
[348737225,1736761861962,-1617.32,0.0001163,2]
[348737226,1736761861972,-500.0,0.0001163,2]
[348737227,1736761861982,-500.0,0.0001163,2]
[348737228,1736761861994,-500.0,0.0001163,2]
[348737229,1736761862003,-503.31,0.0001163,2]
[348737230,1736761862013,-527.78,0.0001163,2]
[348737231,1736761862023,-500.0,0.0001163,2]
[348737232,1736761862034,-416.71806221,0.0001163,2]
[348737233,1736761862043,-906.36,0.0001163,2]
[348737234,1736761862054,-500.0,0.0001163,2]
[348737235,1736761862064,-500.0,0.0001163,2]
[348737236,1736761862073,-694.83,0.0001163,2]
[348737237,1736761862083,-1331.7,0.0001163,2]
[348737238,1736761862093,-500.0,0.0001163,2]
[348737239,1736761862103,-754.36,0.0001163,2]
[348737240,1736761862113,-500.0,0.0001163,2]